Workbook

Sheet Hochzeitsbudget
B2: Hochzeitsbudget
B3: Hochzeitsdatum: | D3: Verbleibende Tage:
B4: =TODAY()+365 -> 2024-05-10 | D4: =B4-TODAY() -> 365
B5: KATEGORIE | C5: GESCHÄTZT | D5: TATSÄCHLICH | E5: ÜBER/UNTER
B6: Bekleidung | C6: =Bekleidung_Gesamt_Plan -> 9,490.00 | D6: =Bekleidung_Gesamt_Ist -> 9,770.00 | E6: =Budgetübersicht[[#This Row],[GESCHÄTZT]]-Budgetübersicht[[#This Row],[TATSÄCHLICH]] -> -280.00
B7: Empfang | C7: =Empfang_Gesamt_Plan -> 1,050.00 | D7: =Empfang_Gesamt_Ist -> 928.00 | E7: =Budgetübersicht[[#This Row],[GESCHÄTZT]]-Budgetübersicht[[#This Row],[TATSÄCHLICH]] -> 122.00
B8: Musik | C8: =Musik_Unterhaltung_Gesamt_Plan -> 600.00 | D8: =Musik_Unterhaltung_Gesamt_Ist -> 400.00 | E8: =Budgetübersicht[[#This Row],[GESCHÄTZT]]-Budgetübersicht[[#This Row],[TATSÄCHLICH]] -> 200.00
B9: Druckmaterial | C9: =Druckmaterial_Briefpapier_Gesamt_Plan -> 935.00 | D9: =Druckmaterial_Briefpapier_Gesamt_Ist -> 870.00 | E9: =Budgetübersicht[[#This Row],[GESCHÄTZT]]-Budgetübersicht[[#This Row],[TATSÄCHLICH]] -> 65.00
B10: Fotografie | C10: =Fotografie_Gesamt_Plan -> 1,625.00 | D10: =Fotografie_Gesamt_Ist -> 1,575.00 | E10: =Budgetübersicht[[#This Row],[GESCHÄTZT]]-Budgetübersicht[[#This Row],[TATSÄCHLICH]] -> 50.00
B11: Dekoration | C11: =Deko_Gesamt_Plan -> 700.00 | D11: =Deko_Gesamt_Ist -> 720.00 | E11: =Budgetübersicht[[#This Row],[GESCHÄTZT]]-Budgetübersicht[[#This Row],[TATSÄCHLICH]] -> -20.00
B12: Blumen | C12: =Blumen_Gesamt_Plan -> 900.00 | D12: =Blumen_Gesamt_Ist -> 850.00 | E12: =Budgetübersicht[[#This Row],[GESCHÄTZT]]-Budgetübersicht[[#This Row],[TATSÄCHLICH]] -> 50.00
B13: Geschenke | C13: =Geschenkte_Gesamt_Plan -> 1,345.00 | D13: =Geschenke_Gesamt_Ist -> 1,075.00 | E13: =Budgetübersicht[[#This Row],[GESCHÄTZT]]-Budgetübersicht[[#This Row],[TATSÄCHLICH]] -> 270.00
B14: Reise | C14: =Reise_Transport_Gesamt_Plan -> 100.00 | D14: =Reise_Transport_Gesamt_Ist -> 165.00 | E14: =Budgetübersicht[[#This Row],[GESCHÄTZT]]-Budgetübersicht[[#This Row],[TATSÄCHLICH]] -> -65.00
B15: Sonstiges | C15: =Sonstige_Ausgaben_Gesamt_Plan -> 885.00 | D15: =Sonstige_Ausgaben_Gesamt_Ist -> 1,021.00 | E15: =Budgetübersicht[[#This Row],[GESCHÄTZT]]-Budgetübersicht[[#This Row],[TATSÄCHLICH]] -> -136.00
B16: Gesamtausgaben | C16: =SUBTOTAL(109,Budgetübersicht[GESCHÄTZT]) -> 17,630.00 | D16: =SUBTOTAL(109,Budgetübersicht[TATSÄCHLICH]) -> 17,374.00 | E16: =SUBTOTAL(109,Budgetübersicht[ÜBER/UNTER]) -> 256.00

Sheet Ausgaben
B2: Ausgaben
B3: KLEIDUNG
B4: KATEGORIE | C4: GESCHÄTZT | D4: TATSÄCHLICH | E4: ÜBER/UNTER
B5: Verlobungsring(e) | C5: 1,500.00 | D5: 1,500.00 | E5: =Ausgaben!$C5-Ausgaben!$D5 -> 0.00
B6: Verlobter 1 – Ring | C6: 2,000.00 | D6: 2,300.00 | E6: =Ausgaben!$C6-Ausgaben!$D6 -> -300.00
B7: Verlobter 1 – Kleid/Smoking | C7: 3,000.00 | D7: 2,750.00 | E7: =Ausgaben!$C7-Ausgaben!$D7 -> 250.00
B8: Verlobter 1 – Schleier/Kopfschmuck | C8: 500.00 | D8: 500.00 | E8: =Ausgaben!$C8-Ausgaben!$D8 -> 0.00
B9: Verlobter 1 – Schuhe | C9: 350.00 | D9: 300.00 | E9: =Ausgaben!$C9-Ausgaben!$D9 -> 50.00
B10: Verlobter 1 – Schmuck | C10: 400.00 | D10: 550.00 | E10: =Ausgaben!$C10-Ausgaben!$D10 -> -150.00
B11: Verlobter 1 – Strumpfwaren | C11: 20.00 | D11: 20.00 | E11: =Ausgaben!$C11-Ausgaben!$D11 -> 0.00
B12: Verlobter 2 – Ring | C12: 300.00 | D12: 250.00 | E12: =Ausgaben!$C12-Ausgaben!$D12 -> 50.00
B13: Verlobter 2 – Kleid/Smoking | C13: 300.00 | D13: 350.00 | E13: =Ausgaben!$C13-Ausgaben!$D13 -> -50.00
B14: Verlobter 2 – Schleier/Kopfschmuck | C14: 500.00 | D14: 500.00 | E14: =Ausgaben!$C14-Ausgaben!$D14 -> 0.00
B15: Verlobter 2 – Schuhe | C15: 200.00 | D15: 175.00 | E15: =Ausgaben!$C15-Ausgaben!$D15 -> 25.00
B16: Verlobter 2 – Schmuck | C16: 400.00 | D16: 550.00 | E16: =Ausgaben!$C16-Ausgaben!$D16 -> -150.00
B17: Verlobter 2 – Strumpfwaren | C17: 20.00 | D17: 25.00 | E17: =Ausgaben!$C17-Ausgaben!$D17 -> -5.00
B18: Bekleidung gesamt | C18: =SUBTOTAL(109,Kleidung[GESCHÄTZT]) -> 9,490.00 | D18: =SUBTOTAL(109,Kleidung[TATSÄCHLICH]) -> 9,770.00 | E18: =SUBTOTAL(109,Kleidung[ÜBER/UNTER]) -> -280.00
B19: EMPFANG*
B20: KATEGORIE | C20: GESCHÄTZT | D20: TATSÄCHLICH | E20: ÜBER/UNTER
B21: Raum-/Saalkosten | C21: 200.00 | D21: 150.00 | E21: =Ausgaben!$C21-Ausgaben!$D21 -> 50.00
B22: Tische und Stühle | C22: 100.00 | D22: 50.00 | E22: =Ausgaben!$C22-Ausgaben!$D22 -> 50.00
B23: Essen | C23: 0.00 | D23: 0.00 | E23: =Ausgaben!$C23-Ausgaben!$D23 -> 0.00
B24: Getränke | C24: 0.00 | D24: 0.00 | E24: =Ausgaben!$C24-Ausgaben!$D24 -> 0.00
B25: Tischwäsche | C25: 0.00 | D25: 0.00 | E25: =Ausgaben!$C25-Ausgaben!$D25 -> 0.00
B26: Torte | C26: 700.00 | D26: 700.00 | E26: =Ausgaben!$C26-Ausgaben!$D26 -> 0.00
B27: Gastgeschenke | C27: 50.00 | D27: 28.00 | E27: =Ausgaben!$C27-Ausgaben!$D27 -> 22.00
B28: Personal und Trinkgelder | C28: 0.00 | D28: 0.00 | E28: =Ausgaben!$C28-Ausgaben!$D28 -> 0.00
B29: Empfang gesamt | C29: =SUBTOTAL(109,Empfang[GESCHÄTZT]) -> 1,050.00 | D29: =SUBTOTAL(109,Empfang[TATSÄCHLICH]) -> 928.00 | E29: =SUBTOTAL(109,Empfang[ÜBER/UNTER]) -> 122.00
B30: * Unterhaltung und Dekoration nicht eingeschlossen
B31: MUSIK/UNTERHALTUNG
B32: KATEGORIE | C32: GESCHÄTZT | D32: TATSÄCHLICH | E32: ÜBER/UNTER
B33: Musiker für Zeremonie | C33: 400.00 | D33: 400.00 | E33: =Ausgaben!$C33-Ausgaben!$D33 -> 0.00
B34: Band/DJ für Empfang | C34: 200.00 | D34: 0.00 | E34: =Ausgaben!$C34-Ausgaben!$D34 -> 200.00
B35: Musik/Unterhaltung gesamt | C35: =SUBTOTAL(109,Musik[GESCHÄTZT]) -> 600.00 | D35: =SUBTOTAL(109,Musik[TATSÄCHLICH]) -> 400.00 | E35: =SUBTOTAL(109,Musik[ÜBER/UNTER]) -> 200.00
B36: DRUCKMATERIAL/BRIEFPAPIER
B37: KATEGORIE | C37: GESCHÄTZT | D37: TATSÄCHLICH | E37: ÜBER/UNTER
B38: Einladungen | C38: 500.00 | D38: 450.00 | E38: =Ausgaben!$C38-Ausgaben!$D38 -> 50.00
B39: Ankündigungen | C39: 200.00 | D39: 175.00 | E39: =Ausgaben!$C39-Ausgaben!$D39 -> 25.00
B40: Dankschreiben | C40: 100.00 | D40: 100.00 | E40: =Ausgaben!$C40-Ausgaben!$D40 -> 0.00
B41: Persönliches Briefpapier | C41: 0.00 | D41: 0.00 | E41: =Ausgaben!$C41-Ausgaben!$D41 -> 0.00
B42: Gästebuch | C42: 25.00 | D42: 25.00 | E42: =Ausgaben!$C42-Ausgaben!$D42 -> 0.00
B43: Programme | C43: 75.00 | D43: 80.00 | E43: =Ausgaben!$C43-Ausgaben!$D43 -> -5.00
B44: Servietten für Empfang | C44: 35.00 | D44: 40.00 | E44: =Ausgaben!$C44-Ausgaben!$D44 -> -5.00
B45: Streichholzbriefchen | C45: 0.00 | D45: 0.00 | E45: =Ausgaben!$C45-Ausgaben!$D45 -> 0.00
B46: Kalligrafie | C46: 0.00 | D46: 0.00 | E46: =Ausgaben!$C46-Ausgaben!$D46 -> 0.00
B47: Druckmaterial/Briefpapier gesamt | C47: =SUBTOTAL(109,Druckmaterial[GESCHÄTZT]) -> 935.00 | D47: =SUBTOTAL(109,Druckmaterial[TATSÄCHLICH]) -> 870.00 | E47: =SUBTOTAL(109,Druckmaterial[ÜBER/UNTER]) -> 65.00
B48: FOTOGRAFIE
B49: KATEGORIE | C49: GESCHÄTZT | D49: TATSÄCHLICH | E49: ÜBER/UNTER
B50: Formelle Fotos | C50: 1,300.00 | D50: 1,300.00 | E50: =Ausgaben!$C50-Ausgaben!$D50 -> 0.00
B51: Zusätzliche Abzüge | C51: 25.00 | D51: 25.00 | E51: =Ausgaben!$C51-Ausgaben!$D51 -> 0.00
B52: Fotoalben | C52: 100.00 | D52: 100.00 | E52: =Ausgaben!$C52-Ausgaben!$D52 -> 0.00
B53: Videografie | C53: 200.00 | D53: 150.00 | E53: =Ausgaben!$C53-Ausgaben!$D53 -> 50.00
B54: Fotografie gesamt | C54: =SUBTOTAL(109,Fotos[GESCHÄTZT]) -> 1,625.00 | D54: =SUBTOTAL(109,Fotos[TATSÄCHLICH]) -> 1,575.00 | E54: =SUBTOTAL(109,Fotos[ÜBER/UNTER]) -> 50.00
B55: DEKORATION*
B56: KATEGORIE | C56: GESCHÄTZT | D56: TATSÄCHLICH | E56: ÜBER/UNTER
B57: Schleifen für Sitze | C57: 0.00 | D57: 0.00 | E57: =Ausgaben!$C57-Ausgaben!$D57 -> 0.00
B58: Tafelaufsätze | C58: 300.00 | D58: 320.00 | E58: =Ausgaben!$C58-Ausgaben!$D58 -> -20.00
B59: Kerzen | C59: 100.00 | D59: 75.00 | E59: =Ausgaben!$C59-Ausgaben!$D59 -> 25.00
B60: Beleuchtung | C60: 100.00 | D60: 75.00 | E60: =Ausgaben!$C60-Ausgaben!$D60 -> 25.00
B61: Luftballons | C61: 200.00 | D61: 250.00 | E61: =Ausgaben!$C61-Ausgaben!$D61 -> -50.00
B62: Dekoration gesamt | C62: =SUBTOTAL(109,Dekoration[GESCHÄTZT]) -> 700.00 | D62: =SUBTOTAL(109,Dekoration[TATSÄCHLICH]) -> 720.00 | E62: =SUBTOTAL(109,Dekoration[ÜBER/UNTER]) -> -20.00
B63: * Blumen nicht eingeschlossen
B64: BLUMEN
B65: KATEGORIE | C65: GESCHÄTZT | D65: TATSÄCHLICH | E65: ÜBER/UNTER
B66: Sträuße | C66: 500.00 | D66: 450.00 | E66: =Ausgaben!$C66-Ausgaben!$D66 -> 50.00
B67: Boutonnières | C67: 0.00 | D67: 0.00 | E67: =Ausgaben!$C67-Ausgaben!$D67 -> 0.00
B68: Anstecksträuße | C68: 0.00 | D68: 0.00 | E68: =Ausgaben!$C68-Ausgaben!$D68 -> 0.00
B69: Zeremonie | C69: 400.00 | D69: 400.00 | E69: =Ausgaben!$C69-Ausgaben!$D69 -> 0.00
B70: Empfang | C70: 0.00 | D70: 0.00 | E70: =Ausgaben!$C70-Ausgaben!$D70 -> 0.00
B71: Blumen gesamt | C71: =SUBTOTAL(109,Blumen[GESCHÄTZT]) -> 900.00 | D71: =SUBTOTAL(109,Blumen[TATSÄCHLICH]) -> 850.00 | E71: =SUBTOTAL(109,Blumen[ÜBER/UNTER]) -> 50.00
B72: GESCHENKE
B73: KATEGORIE | C73: GESCHÄTZT | D73: TATSÄCHLICH | E73: ÜBER/UNTER
B74: Teilnehmer | C74: 1,000.00 | D74: 400.00 | E74: =Ausgaben!$C74-Ausgaben!$D74 -> 600.00
B75: Verlobter 1 | C75: 150.00 | D75: 200.00 | E75: =Ausgaben!$C75-Ausgaben!$D75 -> -50.00
B76: Verlobter 2 | C76: 150.00 | D76: 200.00 | E76: =Ausgaben!$C76-Ausgaben!$D76 -> -50.00
B77: Eltern | C77: 25.00 | D77: 25.00 | E77: =Ausgaben!$C77-Ausgaben!$D77 -> 0.00
B78: Leser/andere Teilnehmer | C78: 20.00 | D78: 250.00 | E78: =Ausgaben!$C78-Ausgaben!$D78 -> -230.00
B79: Geschenke gesamt | C79: =SUBTOTAL(109,Geschenke[GESCHÄTZT]) -> 1,345.00 | D79: =SUBTOTAL(109,Geschenke[TATSÄCHLICH]) -> 1,075.00 | E79: =SUBTOTAL(109,Geschenke[ÜBER/UNTER]) -> 270.00
B80: REISE/BEFÖRDERUNG
B81: KATEGORIE | C81: GESCHÄTZT | D81: TATSÄCHLICH | E81: ÜBER/UNTER
B82: Limousinen/Handwagen | C82: 100.00 | D82: 125.00 | E82: =Ausgaben!$C82-Ausgaben!$D82 -> -25.00
B83: Parken | C83: 0.00 | D83: 40.00 | E83: =Ausgaben!$C83-Ausgaben!$D83 -> -40.00
B84: Taxis | C84: 0.00 | D84: 0.00 | E84: =Ausgaben!$C84-Ausgaben!$D84 -> 0.00
B85: Reise/Beförderung gesamt | C85: =SUBTOTAL(109,Reise[GESCHÄTZT]) -> 100.00 | D85: =SUBTOTAL(109,Reise[TATSÄCHLICH]) -> 165.00 | E85: =SUBTOTAL(109,Reise[ÜBER/UNTER]) -> -65.00
B86: SONSTIGE AUSGABEN
B87: KATEGORIE | C87: GESCHÄTZT | D87: TATSÄCHLICH | E87: ÜBER/UNTER
B88: Offiziant | C88: 0.00 | D88: 0.00 | E88: =Ausgaben!$C88-Ausgaben!$D88 -> 0.00
B89: Kosten für Kirche/Zeremonie | C89: 40.00 | D89: 55.00 | E89: =Ausgaben!$C89-Ausgaben!$D89 -> -15.00
B90: Hochzeitskoordinator | C90: 0.00 | D90: 0.00 | E90: =Ausgaben!$C90-Ausgaben!$D90 -> 0.00
B91: Probediner | C91: 450.00 | D91: 450.00 | E91: =Ausgaben!$C91-Ausgaben!$D91 -> 0.00
B92: Verlobungsparty | C92: 20.00 | D92: 50.00 | E92: =Ausgaben!$C92-Ausgaben!$D92 -> -30.00
B93: Empfänge | C93: 30.00 | D93: 20.00 | E93: =Ausgaben!$C93-Ausgaben!$D93 -> 10.00
B94: Friseurtermine | C94: 45.00 | D94: 46.00 | E94: =Ausgaben!$C94-Ausgaben!$D94 -> -1.00
B95: Junggesellen/-innenabschied | C95: 0.00 | D95: 0.00 | E95: =Ausgaben!$C95-Ausgaben!$D95 -> 0.00
B96: Frühstück | C96: 300.00 | D96: 400.00 | E96: =Ausgaben!$C96-Ausgaben!$D96 -> -100.00
B97: Hotelzimmer | C97: 0.00 | D97: 0.00 | E97: =Ausgaben!$C97-Ausgaben!$D97 -> 0.00
B98: Sonstige Ausgaben gesamt | C98: =SUBTOTAL(109,SonstigeAusgaben[GESCHÄTZT]) -> 885.00 | D98: =SUBTOTAL(109,SonstigeAusgaben[TATSÄCHLICH]) -> 1,021.00 | E98: =SUBTOTAL(109,SonstigeAusgaben[ÜBER/UNTER]) -> -136.00
